fUSD/lending_fUSD_20250221
["ID","MTS","AMOUNT","RATE_DAILY","PERIOD"]
[353958276,1740167456882,-615.92,0.00011205,2]
[353958277,1740167456893,-500.0,0.00011205,2]
[353958278,1740167456903,-500.0,0.00011205,2]
[353958279,1740167456913,-1145.31,0.00011205,2]
[353958280,1740167456923,-500.0,0.00011205,2]
[353958281,1740167456933,-524.1,0.00011205,2]
[353958282,1740167456946,-500.0,0.00011205,2]
[353958283,1740167456956,-680.76,0.00011205,2]
[353958284,1740167456967,-799.15,0.00011205,2]
[353958285,1740167456977,-1285.44,0.00011205,2]
[353958286,1740167456987,-1586.6,0.00011205,2]
[353958287,1740167456998,-514.98,0.00011205,2]
[353958288,1740167457008,-626.99,0.00011205,2]
[353958289,1740167457018,-687.0,0.00011205,2]
[353958290,1740167457028,-763.06,0.00011205,2]
[353958291,1740167457039,-500.0,0.00011205,2]
[353958292,1740167457049,-836.24,0.00011205,2]
[353958293,1740167457059,-500.0,0.00011205,2]
[353958294,1740167457073,-741.66,0.00011205,2]
[353958295,1740167457084,-976.83,0.00011205,2]
[353958296,1740167457094,-500.0,0.00011205,2]
[353958297,1740167457104,-500.0,0.00011205,2]
[353958298,1740167457114,-500.0,0.00011205,2]
[353958299,1740167457124,-1826.83,0.00011205,2]
[353958300,1740167457135,-1648.87,0.00011205,2]
[353958301,1740167457145,-500.0,0.00011205,2]
[353958302,1740167457156,-822.42,0.00011205,2]
[353958303,1740167457166,-500.0,0.00011205,2]
[353958304,1740167457178,-1061.87,0.00011205,2]
[353958305,1740167457189,-769.98,0.00011205,2]
[353958306,1740167457199,-1122.92,0.00011205,2]
[353958307,1740167457210,-818.95,0.00011205,2]
[353958308,1740167457220,-652.38,0.00011205,2]
[353958309,1740167457231,-500.0,0.00011205,2]
[353958310,1740167457241,-569.49,0.00011205,2]
[353958311,1740167457252,-500.0,0.00011205,2]
[353958312,1740167457262,-500.0,0.00011205,2]
[353958313,1740167457272,-778.95,0.00011205,2]
[353958314,1740167457282,-500.0,0.00011205,2]
[353958315,1740167457292,-500.0,0.00011205,2]
[353958316,1740167457303,-500.0,0.00011205,2]
[353958317,1740167457313,-1811.38,0.00011205,2]
[353958318,1740167457323,-575.2,0.00011205,2]
[353958319,1740167457334,-982.85,0.00011205,2]
[353958320,1740167457345,-717.22,0.00011205,2]
[353958321,1740167457355,-1375.27,0.00011205,2]
[353958322,1740167457365,-893.56,0.00011205,2]
[353958323,1740167457376,-500.0,0.00011205,2]
[353958324,1740167457387,-500.0,0.00011205,2]
[353958325,1740167457397,-809.42,0.00011205,2]
[353958326,1740167457407,-1319.65,0.00011205,2]
[353958327,1740167457418,-500.0,0.00011205,2]
[353958328,1740167457428,-1036.04,0.00011205,2]
[353958329,1740167457438,-1242.28,0.00011205,2]
[353958330,1740167457449,-617.56,0.00011205,2]
[353958331,1740167457459,-500.0,0.00011205,2]
[353958332,1740167457469,-625.0,0.00011205,2]
[353958333,1740167457479,-948.12,0.00011205,2]
[353958334,1740167457490,-500.0,0.00011205,2]
[353958335,1740167457500,-500.0,0.00011205,2]
[353958336,1740167457510,-1022.36,0.00011205,2]
[353958337,1740167457520,-612.6334774,0.00011205,2]
[353958338,1740167457531,-854.65,0.00011205,2]
[353958339,1740167457541,-500.0,0.00011205,2]
[353958340,1740167457552,-500.0,0.00011205,2]
[353958341,1740167457562,-926.96,0.00011205,2]
[353958342,1740167457574,-969.71,0.00011205,2]
[353958343,1740167457588,-500.0,0.00011205,2]
[353958344,1740167457601,-810.4,0.00011205,2]
[353958345,1740167457611,-500.0,0.00011205,2]
[353958346,1740167457622,-615.07,0.00011205,2]
[353958347,1740167457632,-500.0,0.00011205,2]
[353958348,1740167457642,-1192.04,0.00011205,2]
[353958349,1740167457653,-508.53,0.00011205,2]
[353958350,1740167457663,-672.33,0.00011205,2]
[353958351,1740167457673,-500.0,0.00011205,2]
[353958352,1740167457684,-1908.9,0.00011205,2]
[353958353,1740167457696,-1359.44,0.00011205,2]
[353958354,1740167457706,-500.0,0.00011205,2]
[353958355,1740167457720,-902.67,0.00011205,2]
[353958356,1740167457731,-1423.88,0.00011205,2]
[353958357,1740167457742,-717.68,0.00011205,2]
[353958358,1740167457752,-500.0,0.00011205,2]
[353958359,1740167457762,-1211.55,0.00011205,2]
[353958360,1740167457772,-2188.61,0.00011205,2]
[353958361,1740167457782,-1759.15,0.00011205,2]
[353958362,1740167457793,-697.64,0.00011205,2]
[353958363,1740167457803,-986.02,0.00011205,2]
[353958364,1740167457815,-1662.17,0.00011205,2]
[353958365,1740167457827,-500.0,0.00011205,2]
[353958366,1740167457837,-1297.0,0.00011205,2]
[353958367,1740167457848,-500.0,0.00011205,2]
[353958368,1740167457858,-861.11,0.00011205,2]
[353958369,1740167457869,-925.5,0.00011205,2]
[353958370,1740167457880,-1460.13,0.00011205,2]
[353958371,1740167457890,-596.42,0.00011205,2]
[353958372,1740167457901,-500.0,0.00011205,2]
[353958373,1740167457911,-500.0,0.00011205,2]
[353958374,1740167457922,-500.0,0.00011205,2]
[353958375,1740167457933,-500.0,0.00011205,2]
[353958376,1740167457944,-1381.05,0.00011205,2]
[353958377,1740167457954,-707.75,0.00011205,2]
[353958378,1740167457965,-905.98,0.00011205,2]
[353958379,1740167457976,-511.21,0.00011205,2]
[353958380,1740167457987,-500.0,0.00011205,2]
[353958381,1740167457998,-645.45,0.00011205,2]
[353958382,1740167458008,-600.11,0.00011205,2]
[353958383,1740167458018,-1101.61,0.00011205,2]
[353958384,1740167458028,-1349.02,0.00011205,2]
[353958385,1740167458039,-1210.32,0.00011205,2]
[353958386,1740167458050,-500.0,0.00011205,2]
[353958387,1740167458061,-599.64,0.00011205,2]
[353958388,1740167458071,-500.0,0.00011205,2]
[353958389,1740167458082,-794.86,0.00011205,2]
[353958390,1740167458092,-901.02,0.00011205,2]
[353958391,1740167458102,-500.0,0.00011205,2]
[353958392,1740167458112,-856.94,0.00011205,2]
[353958393,1740167458123,-500.0,0.00011205,2]
[353958394,1740167458133,-964.92,0.00011205,2]
[353958395,1740167458144,-500.0,0.00011205,2]
[353958396,1740167458154,-1325.37,0.00011205,2]
[353958397,1740167458165,-500.0,0.00011205,2]
[353958398,1740167458177,-1325.36,0.00011205,2]
[353958399,1740167458188,-500.0,0.00011205,2]
[353958400,1740167458198,-500.0,0.00011205,2]
[353958401,1740167458209,-500.0,0.00011205,2]
[353958402,1740167458219,-777.44,0.00011205,2]
[353958403,1740167458229,-1387.99,0.00011205,2]
[353958404,1740167458240,-500.0,0.00011205,2]
[353958405,1740167458251,-500.0,0.00011205,2]
[353958406,1740167458262,-500.0,0.00011205,2]
[353958407,1740167458272,-1448.95,0.00011205,2]
[353958408,1740167458282,-500.0,0.00011205,2]
[353958409,1740167458293,-500.0,0.00011205,2]
[353958410,1740167458304,-724.59,0.00011205,2]
[353958411,1740167458314,-908.66,0.00011205,2]
[353958412,1740167458325,-500.0,0.00011205,2]
[353958413,1740167458335,-857.07,0.00011205,2]
[353958414,1740167458347,-825.21,0.00011205,2]
[353958415,1740167458357,-874.13,0.00011205,2]
[353958416,1740167458368,-500.0,0.00011205,2]
[353958417,1740167458378,-500.0,0.00011205,2]
[353958418,1740167458388,-500.0,0.00011205,2]
[353958419,1740167458399,-1679.67,0.00011205,2]
[353958420,1740167458410,-500.0,0.00011205,2]
[353958421,1740167458420,-500.0,0.00011205,2]
[353958422,1740167458430,-500.0,0.00011205,2]
[353958423,1740167458442,-1120.09,0.00011205,2]
[353958424,1740167458452,-500.0,0.00011205,2]
[353958425,1740167458462,-684.04,0.00011205,2]
[353958426,1740167458472,-500.0,0.00011205,2]
[353958427,1740167458482,-1184.73,0.00011205,2]
[353958428,1740167458492,-500.0,0.00011205,2]
[353958429,1740167458503,-934.86,0.00011205,2]
[353958430,1740167458513,-1633.04,0.00011205,2]
[353958431,1740167458523,-2742.63,0.00011205,2]
[353958432,1740167458533,-500.0,0.00011205,2]
[353958433,1740167458544,-500.0,0.00011205,2]
[353958434,1740167458554,-666.09,0.00011205,2]
[353958435,1740167458564,-814.84,0.00011205,2]
[353958436,1740167458574,-1339.09,0.00011205,2]
[353958437,1740167458585,-1290.16,0.00011205,2]
[353958438,1740167458595,-500.0,0.00011205,2]
[353958439,1740167458605,-600.21,0.00011205,2]
[353958440,1740167458615,-566.0,0.00011205,2]
[353958441,1740167458626,-1207.48,0.00011205,2]
[353958442,1740167458636,-1444.01,0.00011205,2]
[353958443,1740167458647,-500.0,0.00011205,2]
[353958444,1740167458659,-1395.85,0.00011205,2]
[353958445,1740167458670,-3450.46,0.00011205,2]
[353958446,1740167458681,-500.0,0.00011205,2]
[353958447,1740167458693,-500.0,0.00011205,2]
[353958448,1740167458704,-1125.15,0.00011205,2]
[353958449,1740167458717,-500.0,0.00011205,2]
[353958450,1740167458727,-1047.03,0.00011205,2]
[353958451,1740167458738,-537.84,0.00011205,2]
[353958452,1740167458748,-959.73,0.00011205,2]
[353958453,1740167458759,-500.0,0.00011205,2]
[353958454,1740167458771,-500.0,0.00011205,2]
[353958455,1740167458782,-786.56,0.00011205,2]
[353958456,1740167458794,-2785.17,0.00011205,2]
[353958457,1740167458804,-706.89,0.00011205,2]
[353958458,1740167458815,-611.17,0.00011205,2]
[353958459,1740167458827,-500.0,0.00011205,2]
[353958460,1740167459244,-500.0,0.00011205,2]
[353958461,1740167459263,-156.045622,0.00011205,2]
[353958462,1740167459273,-525.67,0.00011205,2]
[353958463,1740167459283,-819.59,0.00011205,2]
[353958464,1740167459292,-1421.65,0.00011205,2]
[353958465,1740167459302,-853.79,0.00011205,2]
[353958466,1740167459311,-361.10002796,0.00011205,2]
[353958467,1740167459320,-1799.84,0.00011205,2]
[353958468,1740167459330,-500.0,0.00011205,2]
[353958469,1740167459339,-517.54,0.00011205,2]
[353958470,1740167459348,-500.0,0.00011205,2]
[353958471,1740167459358,-371.16285236,0.00011205,2]
[353958472,1740167459367,-2465.29,0.00011205,2]
[353958473,1740167459376,-779.77,0.00011205,2]
[353958474,1740167459385,-3543.95,0.00011205,2]
[353958475,1740167459395,-382.093165,0.00011205,2]
[353958476,1740167459404,-500.0,0.00011205,2]
[353958477,1740167459414,-500.0,0.00011205,2]
[353958478,1740167459423,-1897.92,0.00011205,2]
[353958479,1740167459433,-602.91035286,0.00011205,2]
[353958480,1740167459443,-2898.71,0.00011205,2]
[353958481,1740167459452,-500.0,0.00011205,2]
[353958482,1740167459462,-749.44,0.00011205,2]
[353958483,1740167459471,-1425.64,0.00011205,2]
[353958484,1740167459480,-639.64,0.00011205,2]
[353958485,1740167459489,-1833.48,0.00011205,2]
[353958486,1740167459499,-500.0,0.00011205,2]
[353958487,1740167459508,-1283.58,0.00011205,2]
[353958488,1740167459517,-500.0,0.00011205,2]
[353958489,1740167459526,-500.0,0.00011205,2]
[353958490,1740167459535,-2412.67,0.00011205,2]
[353958491,1740167459544,-500.0,0.00011205,2]
[353958492,1740167459553,-1306.89,0.00011205,2]
[353958493,1740167459562,-500.0,0.00011205,2]
[353958494,1740167459572,-2034.14,0.00011205,2]
[353958495,1740167459581,-500.0,0.00011205,2]
[353958496,1740167459590,-2076.65,0.00011205,2]
[353958497,1740167459599,-974.92,0.00011205,2]
[353958498,1740167459608,-500.0,0.00011205,2]
[353958499,1740167459618,-1574.15,0.00011205,2]
[353958500,1740167459627,-1640.08,0.00011205,2]
[353958501,1740167459636,-500.0,0.00011205,2]
[353958502,1740167459646,-500.0,0.00011205,2]
[353958503,1740167459655,-500.0,0.00011205,2]
[353958504,1740167459664,-1453.95,0.00011205,2]
[353958505,1740167459673,-1900.25,0.00011205,2]
[353958506,1740167459682,-13118.68,0.00011205,2]
[353958507,1740167459694,-1683.88,0.00011205,2]
[353958508,1740167459707,-554.2,0.00011205,2]
[353958509,1740167459716,-511.87,0.00011205,2]
[353958510,1740167459725,-2369.7,0.00011205,2]
[353958511,1740167459734,-1211.68,0.00011205,2]
[353958512,1740167459744,-500.0,0.00011205,2]
[353958513,1740167459753,-507.65640762,0.00011205,2]
[353958514,1740167459764,-666.84,0.00011205,2]
[353958515,1740167459774,-1282.54,0.00011205,2]
[353958516,1740167459783,-1427.28,0.00011205,2]
[353958517,1740167459793,-1696.55,0.00011205,2]
[353958518,1740167459803,-500.0,0.00011205,2]
[353958519,1740167459812,-867.08,0.00011205,2]
[353958520,1740167459821,-2568.42,0.00011205,2]
[353958521,1740167459831,-1911.79,0.00011205,2]
[353958522,1740167459841,-679.07,0.00011205,2]
[353958523,1740167459850,-621.24,0.00011205,2]
[353958524,1740167459860,-747.95,0.00011205,2]
[353958525,1740167459871,-1137.83,0.00011205,2]
[353958526,1740167459880,-2035.76,0.00011205,2]
[353958527,1740167459890,-481.02423042,0.00011205,2]
[353958528,1740167459899,-500.0,0.00011205,2]
[353958529,1740167459909,-1256.62,0.00011205,2]
[353958530,1740167459918,-500.0,0.00011205,2]
[353958531,1740167459928,-718.0,0.00011205,2]
[353958532,1740167459937,-500.0,0.00011205,2]
[353958533,1740167459947,-901.59,0.00011205,2]
[353958534,1740167459956,-2040.15,0.00011205,2]
[353958535,1740167459966,-1477.74,0.00011205,2]
[353958536,1740167459975,-500.0,0.00011205,2]
[353958537,1740167459984,-500.0,0.00011205,2]
[353958538,1740167459993,-757.34,0.00011205,2]
[353958539,1740167460003,-2164.87,0.00011205,2]
[353958540,1740167460012,-1659.4,0.00011205,2]
[353958541,1740167460022,-1859.7,0.00011205,2]
[353958542,1740167460031,-2453.21,0.00011205,2]
[353958543,1740167460042,-561.26,0.00011205,2]
[353958544,1740167460053,-500.0,0.00011205,2]
[353958545,1740167460063,-1850.75,0.00011205,2]
[353958546,1740167460073,-500.0,0.00011205,2]
[353958547,1740167460084,-151.0,0.00011205,2]
[353958548,1740167460093,-500.0,0.00011205,2]
[353958549,1740167460103,-601.04,0.00011205,2]
[353958550,1740167460113,-822.39,0.00011205,2]
[353958551,1740167460122,-734.9,0.00011205,2]
[353958552,1740167460132,-4625.02,0.00011205,2]
[353958553,1740167460142,-500.0,0.00011205,2]
[353958554,1740167460151,-1777.87,0.00011205,2]
[353958555,1740167460160,-1540.98,0.00011205,2]
[353958556,1740167460173,-500.0,0.00011205,2]
[353958557,1740167460183,-546.46,0.00011205,2]
[353958558,1740167460195,-500.0,0.00011205,2]
[353958559,1740167460205,-500.0,0.00011205,2]
[353958560,1740167460215,-500.0,0.00011205,2]
[353958561,1740167460225,-500.0,0.00011205,2]
[353958562,1740167460235,-1630.09,0.00011205,2]
[353958563,1740167460245,-500.0,0.00011205,2]
[353958564,1740167460254,-899.67,0.00011205,2]
[353958565,1740167460264,-1542.1,0.00011205,2]
[353958566,1740167460273,-547.15,0.00011205,2]
[353958567,1740167460283,-500.0,0.00011205,2]
[353958568,1740167460292,-2224.84,0.00011205,2]
[353958569,1740167460302,-943.17,0.00011205,2]
[353958570,1740167460312,-500.0,0.00011205,2]
[353958571,1740167460321,-500.0,0.00011205,2]
[353958572,1740167460331,-807.22,0.00011205,2]
[353958573,1740167460340,-1405.51,0.00011205,2]
[353958574,1740167460349,-1451.47,0.00011205,2]
[353958575,1740167460359,-773.56,0.00011205,2]
[353958576,1740167460368,-863.09,0.00011205,2]
[353958577,1740167460378,-1030.82,0.00011205,2]
[353958578,1740167460387,-1414.2,0.00011205,2]
[353958579,1740167460397,-2629.27,0.00011205,2]
[353958580,1740167460407,-500.0,0.00011205,2]
[353958581,1740167460416,-591.21,0.00011205,2]
[353958582,1740167460425,-1956.95,0.00011205,2]
[353958583,1740167460434,-933.0,0.00011205,2]
[353958584,1740167460449,-572.93,0.00011205,2]
[353958585,1740167460459,-500.0,0.00011205,2]
[353958586,1740167460468,-500.0,0.00011205,2]
[353958587,1740167460478,-500.0,0.00011205,2]
[353958588,1740167460488,-1071.61,0.00011205,2]
[353958589,1740167460498,-1979.81,0.00011205,2]
[353958590,1740167460507,-2806.52,0.00011205,2]
[353958591,1740167460516,-454.6805348,0.00011205,2]
[353958592,1740167460526,-500.0,0.00011205,2]
[353958593,1740167460535,-1063.77,0.00011205,2]
[353958594,1740167460545,-500.0,0.00011205,2]
[353958595,1740167460554,-511.32,0.00011205,2]
[353958596,1740167460564,-1836.76,0.00011205,2]
[353958597,1740167460574,-500.0,0.00011205,2]
[353958598,1740167460583,-523.07,0.00011205,2]
[353958599,1740167460592,-500.0,0.00011205,2]
[353958600,1740167460602,-1918.18,0.00011205,2]
[353958601,1740167460612,-500.0,0.00011205,2]
[353958602,1740167460621,-1627.61,0.00011205,2]
[353958603,1740167460631,-500.0,0.00011205,2]
[353958604,1740167460641,-546.11,0.00011205,2]
[353958605,1740167460650,-500.0,0.00011205,2]
[353958606,1740167460659,-645.43,0.00011205,2]
[353958607,1740167460670,-1484.14,0.00011205,2]
[353958608,1740167460679,-500.0,0.00011205,2]
[353958609,1740167460689,-2455.95,0.00011205,2]
[353958610,1740167460702,-500.0,0.00011205,2]
[353958611,1740167460714,-500.0,0.00011205,2]
[353958612,1740167460723,-667.63,0.00011205,2]
[353958613,1740167460733,-500.0,0.00011205,2]
[353958614,1740167460741,-2372.7,0.00011205,2]
[353958615,1740167460753,-626.59,0.00011205,2]
[353958616,1740167460763,-908.08,0.00011205,2]
[353958617,1740167460773,-500.0,0.00011205,2]
[353958618,1740167460782,-500.0,0.00011205,2]
[353958619,1740167460794,-500.0,0.00011205,2]
[353958620,1740167460803,-911.32,0.00011205,2]
[353958621,1740167460812,-571.24259119,0.00011205,2]
[353958622,1740167460821,-151.0,0.00011205,2]
[353958623,1740167460831,-5546.19,0.00011205,2]
[353958624,1740167460839,-1353.06,0.00011205,2]
[353958625,1740167460849,-500.0,0.00011205,2]
[353958626,1740167460858,-1549.06,0.00011205,2]
[353958627,1740167460868,-1073.32,0.00011205,2]
[353958628,1740167460878,-637.01091545,0.00011205,2]
[353958629,1740167460887,-1586.49,0.00011205,2]
[353958630,1740167460897,-4218.35,0.00011205,2]
[353958631,1740167460906,-1546.99,0.00011205,2]
[353958632,1740167460916,-560.32,0.00011205,2]
[353958633,1740167460925,-1702.81,0.00011205,2]
[353958634,1740167460935,-500.0,0.00011205,2]
[353958635,1740167460949,-500.0,0.00011205,2]
[353958636,1740167460958,-500.0,0.00011205,2]
[353958637,1740167460968,-1764.24,0.00011205,2]
[353958638,1740167460977,-735.06,0.00011205,2]
[353958639,1740167460987,-1149.42,0.00011205,2]
[353958640,1740167460997,-1183.25,0.00011205,2]
[353958641,1740167461007,-500.0,0.00011205,2]
[353958642,1740167461017,-636.23,0.00011205,2]
[353958643,1740167461026,-500.0,0.00011205,2]
[353958644,1740167461035,-500.0,0.00011205,2]
[353958645,1740167461045,-601.47,0.00011205,2]
[353958646,1740167461054,-500.0,0.00011205,2]
[353958647,1740167461063,-500.0,0.00011205,2]
[353958648,1740167461072,-500.0,0.00011205,2]
[353958649,1740167461082,-2271.32,0.00011205,2]
[353958650,1740167461092,-500.0,0.00011205,2]
[353958651,1740167461101,-541.45,0.00011205,2]
[353958652,1740167461110,-876.43,0.00011205,2]
[353958653,1740167461119,-2152.05,0.00011205,2]
[353958654,1740167461128,-916.64,0.00011205,2]
[353958655,1740167461138,-553.9,0.00011205,2]
[353958656,1740167461147,-1511.65,0.00011205,2]
[353958657,1740167461156,-500.0,0.00011205,2]
[353958658,1740167461166,-500.0,0.00011205,2]
[353958659,1740167461177,-3165.99,0.00011205,2]
[353958660,1740167461187,-805.35,0.00011205,2]
[353958661,1740167461200,-500.0,0.00011205,2]
[353958662,1740167461210,-714.44,0.00011205,2]
[353958663,1740167461220,-517.12,0.00011205,2]
[353958664,1740167461231,-2840.89,0.00011205,2]
[353958665,1740167461241,-500.0,0.00011205,2]
[353958666,1740167461251,-2330.01,0.00011205,2]
[353958667,1740167461261,-1123.03,0.00011205,2]
[353958668,1740167461271,-1483.29,0.00011205,2]
[353958669,1740167461281,-706.1,0.00011205,2]
[353958670,1740167461291,-500.0,0.00011205,2]
[353958671,1740167461302,-500.0,0.00011205,2]
[353958672,1740167461312,-500.0,0.00011205,2]
[353958673,1740167461321,-500.0,0.00011205,2]
[353958674,1740167461331,-1141.98,0.00011205,2]
[353958675,1740167461341,-762.79,0.00011205,2]
[353958676,1740167461351,-1041.84,0.00011205,2]
[353958677,1740167461361,-1531.08,0.00011205,2]
[353958678,1740167461372,-1281.67,0.00011205,2]
[353958679,1740167461382,-555.85,0.00011205,2]
[353958680,1740167461391,-521.28,0.00011205,2]
[353958681,1740167461400,-1097.81,0.00011205,2]
[353958682,1740167461410,-1217.74,0.00011205,2]
[353958683,1740167461419,-500.0,0.00011205,2]
[353958684,1740167461429,-1719.50181538,0.0001126,2]
[353958685,1740167461439,-1371.14030773,0.0001126,2]
[353958686,1740167461449,-165.01308045,0.00011273,2]
[353958687,1740167461459,-501.18608469,0.00011273,2]
[353958688,1740167461469,-500.0,0.00011273,2]
[353958689,1740167461479,-170.47574771,0.00011273,2]
[353958690,1740167461488,-455.21689367,0.00011273,2]
[353958691,1740167461498,-160.69331001,0.00011273,2]
[353958692,1740167461507,-501.27928532,0.00011273,2]
[353958693,1740167461516,-205.29221239,0.00011273,2]
[353958694,1740167461586,-277.6900763,0.00011273,2]
[353958695,1740167461596,-151.42803436,0.00011273,2]
[353958696,1740167461605,-151.54625005,0.00011273,2]
[353958697,1740167461615,-160.47057759,0.00011273,2]
[353958698,1740167461624,-307.34273026,0.00011273,2]
[353958699,1740167461633,-473.88023547,0.00011273,2]
[353958700,1740167461643,-500.0,0.00011286,2]
[353958701,1740167461652,-500.0,0.00011286,2]
[353958702,1740167461661,-500.0,0.00011286,2]
[353958703,1740167461671,-500.0,0.00011286,2]
[353958704,1740167461680,-500.0,0.00011287,2]
[353958705,1740167461692,-500.0,0.00011287,2]
[353958706,1740167461706,-575.69,0.00011287,2]
[353958707,1740167461716,-500.0,0.00011287,2]
[353958708,1740167461725,-500.0,0.00011287,2]
[353958709,1740167461734,-500.0,0.00011287,2]
[353958710,1740167461745,-500.0,0.00011287,2]
[353958711,1740167461755,-681.16,0.00011287,2]
[353958712,1740167461765,-616.06,0.00011287,2]
[353958713,1740167461774,-817.79,0.00011287,2]
[353958714,1740167461784,-500.0,0.00011287,2]
[353958715,1740167461794,-151.0,0.00011287,2]
[353958716,1740167461803,-723.6,0.00011287,2]
[353958717,1740167461812,-1031.25,0.00011287,2]
[353958718,1740167461821,-687.99,0.00011287,2]
[353958719,1740167461831,-500.0,0.00011287,2]
[353958720,1740167461840,-500.0,0.00011287,2]
[353958721,1740167461849,-500.0,0.00011287,2]
[353958722,1740167461858,-500.0,0.00011287,2]
[353958723,1740167461867,-500.0,0.00011287,2]
[353958724,1740167461877,-791.84,0.00011287,2]
[353958725,1740167461886,-500.0,0.00011287,2]
[353958726,1740167461895,-500.0,0.00011287,2]
[353958727,1740167461904,-643.32,0.00011287,2]
[353958728,1740167461913,-758.78,0.00011287,2]
[353958729,1740167461923,-582.11,0.00011287,2]
[353958730,1740167461932,-500.0,0.00011287,2]
[353958731,1740167461942,-500.0,0.00011287,2]
[353958732,1740167461951,-757.52,0.00011287,2]
[353958733,1740167461961,-500.0,0.00011287,2]
[353958734,1740167461971,-500.0,0.00011287,2]
[353958735,1740167461980,-500.0,0.00011287,2]
[353958736,1740167461989,-500.0,0.00011287,2]
[353958737,1740167461998,-500.0,0.00011287,2]
[353958738,1740167462008,-500.0,0.00011287,2]
[353958739,1740167462017,-500.0,0.00011287,2]
[353958740,1740167462026,-500.0,0.00011287,2]
[353958741,1740167462036,-555.11,0.00011287,2]
[353958742,1740167462045,-730.45,0.00011287,2]
[353958743,1740167462054,-700.04,0.00011287,2]
[353958744,1740167462064,-500.0,0.00011287,2]
[353958745,1740167462072,-639.37,0.00011287,2]
[353958746,1740167462081,-644.32,0.00011287,2]
[353958747,1740167462090,-500.0,0.00011287,2]
[353958748,1740167462099,-500.0,0.00011287,2]
[353958749,1740167462108,-500.0,0.00011287,2]
[353958750,1740167462117,-831.04,0.00011287,2]
[353958751,1740167462127,-500.0,0.00011287,2]
[353958752,1740167462136,-256.64192719,0.00011287,2]
[353958753,1740167462146,-500.0,0.00011287,2]
[353958754,1740167462155,-500.0,0.00011287,2]
[353958755,1740167462164,-515.07,0.00011287,2]
[353958756,1740167462174,-625.71,0.00011287,2]
[353958757,1740167462183,-500.0,0.00011287,2]
[353958758,1740167462196,-500.0,0.00011287,2]
[353958759,1740167462206,-848.84,0.00011287,2]
[353958760,1740167462215,-822.17,0.00011287,2]
[353958761,1740167462224,-745.81,0.00011287,2]
[353958762,1740167462234,-500.0,0.00011287,2]
[353958763,1740167462243,-500.0,0.00011287,2]
[353958764,1740167462252,-500.0,0.00011287,2]
[353958765,1740167462262,-919.32,0.00011287,2]
[353958766,1740167462271,-500.0,0.00011287,2]
[353958767,1740167462280,-500.0,0.00011287,2]
[353958768,1740167462290,-500.0,0.00011287,2]
[353958769,1740167462299,-151.0,0.00011287,2]
[353958770,1740167462308,-151.0,0.00011287,2]
[353958771,1740167462317,-687.5,0.00011287,2]
[353958772,1740167462326,-151.0,0.00011287,2]
[353958773,1740167462335,-151.0,0.00011287,2]
[353958774,1740167462344,-151.0,0.00011287,2]
[353958775,1740167462354,-151.0,0.00011287,2]